[Event "2026 European Womens Championship"]
[Site "Batumi, GE"]
[Date "2026.06.01"]
[Round "7"]
[White "Mgeladze, Kesaria"]
[Black "Nomin-Erdene, Davaademberel"]
[Result "0-1"]
[Board "77"]
[TimeControl "5400+30"]
[WhiteFideId "13621130"]
[BlackFideId "4900782"]
[WhiteElo "2147"]
[BlackElo "2328"]
[WhiteTitle "WIM"]
[BlackTitle "IM"]
[WhiteClock "0:02:06"]
[BlackClock "0:02:04"]
[Variant "Standard"]

1. e4 {[%clk 1:30:47]}  e5 {[%clk 1:30:18]} 2. Nf3 {[%clk 1:31:14]}  Nc6 {[%clk 1:30:41]} 3. Bb5 {[%clk 1:31:38]}  a6 {[%clk 1:31:06]}
4. Ba4 {[%clk 1:32:04]}  Bc5 {[%clk 1:31:19]} 5. O-O {[%clk 1:29:21]}  Nge7 {[%clk 1:31:40]} 6. c3 {[%clk 1:27:10]}  Ng6 {[%clk 1:32:00]}
7. d4 {[%clk 1:26:14]}  Ba7 {[%clk 1:32:24]} 8. Bg5 {[%clk 1:21:02]}  f6 {[%clk 1:32:45]} 9. Be3 {[%clk 1:21:16]}  O-O {[%clk 1:33:06]}
10. h4 {[%clk 1:16:17]}  d6 {[%clk 1:08:30]} 11. h5 {[%clk 1:07:39]}  Nf4 {[%clk 1:00:41]} 12. Bxf4 {[%clk 1:00:49]}  exf4 {[%clk 1:01:07]}
13. Nh4 {[%clk 0:59:40]}  f5 {[%clk 0:57:00]} 14. Nxf5 {[%clk 0:56:30]}  Bxf5 {[%clk 0:56:54]} 15. exf5 {[%clk 0:56:50]}  Rxf5 {[%clk 0:56:35]}
16. Qb3+ {[%clk 0:48:06]}  d5 {[%clk 0:48:31]} 17. Qxb7 {[%clk 0:47:22]}  Na5 {[%clk 0:40:06]} 18. Qxa6 {[%clk 0:46:34]}  Rxh5 {[%clk 0:24:41]}
19. Qe6+ {[%clk 0:39:03]}  Kf8 {[%clk 0:25:01]} 20. Qg4 {[%clk 0:35:29]}  Rh6 {[%clk 0:13:55]} 21. Qxf4+ {[%clk 0:32:13]}  Kg8 {[%clk 0:14:23]}
22. Nd2 {[%clk 0:30:08]}  Bb8 {[%clk 0:12:40]} 23. Nf3 {[%clk 0:16:56]}  Nc4 {[%clk 0:08:11]} 24. Bc2 {[%clk 0:16:09]}  Raa6 {[%clk 0:07:14]}
25. Ng5 {[%clk 0:10:14]}  c5 {[%clk 0:03:51]} 26. Qf7+ {[%clk 0:09:56]}  Kh8 {[%clk 0:04:21]} 27. Rfe1 {[%clk 0:09:54]}  Bh2+ {[%clk 0:04:43]}
28. Kf1 {[%clk 0:08:45]}  Nd2+ {[%clk 0:00:36]} 29. Ke2 {[%clk 0:09:11]}  Nc4 {[%clk 0:01:04]} 30. Kd1 {[%clk 0:08:07]}  Ra8 {[%clk 0:01:19]}
31. Re7 {[%clk 0:03:35]}  Qg8 {[%clk 0:01:13]} 32. Qf3 {[%clk 0:02:31]}  Nd6 {[%clk 0:01:17]} 33. g3 {[%clk 0:02:08]}  Rf8 {[%clk 0:01:09]}
34. Qg2 {[%clk 0:02:07]}  cxd4 {[%clk 0:00:56]} 35. cxd4 {[%clk 0:02:22]}  Rh5 {[%clk 0:00:39]} 36. Nf3 {[%clk 0:01:42]}  Nf5 {[%clk 0:00:32]}
37. Re5 {[%clk 0:01:18]}  Qf7 {[%clk 0:00:35]} 38. Rxf5 {[%clk 0:01:05]}  Rxf5 {[%clk 0:01:00]} 39. Bxf5 {[%clk 0:01:26]}  Qxf5 {[%clk 0:01:29]}
40. Rc1 {[%clk 0:00:45]}  Qg4 {[%clk 0:00:33]} 41. Rc3 {[%clk 0:24:47]}  h6 {[%clk 0:11:19]} 42. Ke2 {[%clk 0:15:32]}  Qe4+ {[%clk 0:09:04]}
43. Re3 {[%clk 0:11:28]}  Qc2+ {[%clk 0:09:06]} 44. Nd2 {[%clk 0:10:59]}  Qxb2 {[%clk 0:09:03]} 45. Qxh2 {[%clk 0:10:12]}  Qxd4 {[%clk 0:09:05]}
46. Qh5 {[%clk 0:06:38]}  Qf6 {[%clk 0:09:06]} 47. f4 {[%clk 0:05:32]}  Qa6+ {[%clk 0:08:04]} 48. Kf3 {[%clk 0:05:27]}  d4 {[%clk 0:03:16]}
49. Qc5 {[%clk 0:04:22]}  Rd8 {[%clk 0:03:03]} 50. Ra3 {[%clk 0:04:23]}  Qb7+ {[%clk 0:03:18]} 51. Kf2 {[%clk 0:03:30]}  d3 {[%clk 0:01:47]}
52. Qe3 {[%clk 0:03:02]}  Qb5 {[%clk 0:00:33]} 53. Rb3 {[%clk 0:01:58]}  Qd5 {[%clk 0:00:35]} 54. a4 {[%clk 0:01:33]}  Qf5 {[%clk 0:00:36]}
55. Rb5 {[%clk 0:01:05]}  Qh3 {[%clk 0:00:48]} 56. Qf3 {[%clk 0:00:53]}  Re8 {[%clk 0:00:32]} 57. Re5 {[%clk 0:00:50]}  Rc8 {[%clk 0:00:33]}
58. Qxd3 {[%clk 0:00:44]}  Qh2+ {[%clk 0:00:51]} 59. Kf3 {[%clk 0:01:07]}  Qh1+ {[%clk 0:01:09]} 60. Kg4 {[%clk 0:01:17]}  Qd1+ {[%clk 0:01:22]}
61. Qe2 {[%clk 0:01:08]}  Qxa4 {[%clk 0:01:47]} 62. Qe4 {[%clk 0:00:45]}  Qd1+ {[%clk 0:00:38]} 63. Nf3 {[%clk 0:01:10]}  Rf8 {[%clk 0:00:33]}
64. Rd5 {[%clk 0:01:01]}  Qh1 {[%clk 0:00:33]} 65. Qe7 {[%clk 0:00:40]}  Rf6 {[%clk 0:00:48]} 66. Qe8+ {[%clk 0:00:37]}  Kh7 {[%clk 0:01:03]}
67. Rh5 {[%clk 0:00:35]}  Qd1 {[%clk 0:00:54]} 68. f5 {[%clk 0:00:31]}  Ra6 {[%clk 0:00:41]} 69. f6 {[%clk 0:00:32]}  Ra4+ {[%clk 0:00:40]}
70. Qxa4 {[%clk 0:00:34]}  Qxa4+ {[%clk 0:01:08]} 71. Kf5 {[%clk 0:00:42]}  g6+ {[%clk 0:01:34]} 72. Ke6 {[%clk 0:00:59]}  Qc6+ {[%clk 0:01:47]}
73. Ke7 {[%clk 0:01:14]}  Qc7+ {[%clk 0:01:27]} 74. Ke8 {[%clk 0:01:30]}  Qc8+ {[%clk 0:01:01]} 75. Ke7 {[%clk 0:01:55]}  Qc7+ {[%clk 0:01:25]}
76. Ke8 {[%clk 0:02:21]}  gxh5 {[%clk 0:01:26]} 77. f7 {[%clk 0:01:41]}  Qb8+ {[%clk 0:01:35]} 78. Ke7 {[%clk 0:02:06]}  Kg7 {[%clk 0:02:04]} 0-1

[Event "2026 European Womens Championship"]
[Site "Batumi, GE"]
[Date "2026.06.01"]
[Round "7"]
[White "Iglesias, Yosha"]
[Black "Tirpan, Ceren"]
[Result "1-0"]
[Board "78"]
[TimeControl "5400+30"]
[WhiteFideId "637823"]
[BlackFideId "26385309"]
[WhiteElo "2325"]
[BlackElo "2209"]
[WhiteTitle "FM"]
[BlackTitle "WFM"]
[WhiteClock "0:06:20"]
[BlackClock "0:04:32"]
[Variant "Standard"]

1. d4 {[%clk 1:30:57]}  Nf6 {[%clk 1:30:55]} 2. Nf3 {[%clk 1:31:20]}  g6 {[%clk 1:31:22]} 3. Bg5 {[%clk 1:31:30]}  Bg7 {[%clk 1:31:27]}
4. Nbd2 {[%clk 1:31:54]}  d5 {[%clk 1:28:00]} 5. e3 {[%clk 1:32:06]}  c5 {[%clk 1:25:39]} 6. c3 {[%clk 1:32:29]}  Nbd7 {[%clk 1:24:39]}
7. Be2 {[%clk 1:32:38]}  O-O {[%clk 1:25:03]} 8. O-O {[%clk 1:33:03]}  b6 {[%clk 1:24:51]} 9. a4 {[%clk 1:31:51]}  Bb7 {[%clk 1:09:46]}
10. a5 {[%clk 1:31:34]}  Ne4 {[%clk 1:03:33]} 11. Nxe4 {[%clk 1:21:40]}  dxe4 {[%clk 1:03:57]} 12. Nd2 {[%clk 1:22:03]}  cxd4 {[%clk 1:02:36]}
13. cxd4 {[%clk 1:22:02]}  h6 {[%clk 0:44:05]} 14. Bh4 {[%clk 1:22:19]}  g5 {[%clk 0:30:00]} 15. Bg3 {[%clk 1:22:35]}  e5 {[%clk 0:29:35]}
16. Qb1 {[%clk 1:13:58]}  f5 {[%clk 0:21:37]} 17. Bc4+ {[%clk 1:13:40]}  Kh8 {[%clk 0:21:57]} 18. a6 {[%clk 1:10:16]}  Bc8 {[%clk 0:17:51]}
19. dxe5 {[%clk 0:46:27]}  Nxe5 {[%clk 0:11:58]} 20. Rd1 {[%clk 0:42:21]}  Qe7 {[%clk 0:11:18]} 21. Bd5 {[%clk 0:16:00]}  Rb8 {[%clk 0:11:41]}
22. Bxe5 {[%clk 0:16:10]}  Qxe5 {[%clk 0:12:05]} 23. Nc4 {[%clk 0:16:14]}  Qf6 {[%clk 0:12:04]} 24. Ra2 {[%clk 0:12:21]}  Rd8 {[%clk 0:11:37]}
25. b3 {[%clk 0:11:55]}  Bd7 {[%clk 0:09:52]} 26. Bb7 {[%clk 0:10:47]}  Bb5 {[%clk 0:09:46]} 27. g4 {[%clk 0:09:23]}  fxg4 {[%clk 0:07:23]}
28. Rad2 {[%clk 0:08:49]}  Qe7 {[%clk 0:06:01]} 29. Qxe4 {[%clk 0:04:30]}  Rxd2 {[%clk 0:05:21]} 30. Qxe7 {[%clk 0:04:27]}  Rxd1+ {[%clk 0:05:45]}
31. Kg2 {[%clk 0:04:55]}  Re8 {[%clk 0:02:38]} 32. Qf7 {[%clk 0:04:15]}  Rf8 {[%clk 0:02:54]} 33. Qg6 {[%clk 0:03:45]}  Be8 {[%clk 0:01:44]}
34. Qc2 {[%clk 0:03:02]}  Rd8 {[%clk 0:02:08]} 35. Qe4 {[%clk 0:03:15]}  Bh5 {[%clk 0:01:42]} 36. Qe6 {[%clk 0:01:05]}  Rde8 {[%clk 0:01:20]}
37. Qd7 {[%clk 0:01:11]}  Rd8 {[%clk 0:01:40]} 38. Qc7 {[%clk 0:00:48]}  b5 {[%clk 0:00:59]} 39. Nd6 {[%clk 0:00:52]}  Bg6 {[%clk 0:01:26]}
40. Qe7 {[%clk 0:00:53]}  b4 {[%clk 0:00:38]} 41. e4 {[%clk 0:19:37]}  Bd4 {[%clk 0:22:48]} 42. Nf5 {[%clk 0:18:53]}  Rfe8 {[%clk 0:20:13]}
43. Qc7 {[%clk 0:17:47]}  Be5 {[%clk 0:12:06]} 44. Qc5 {[%clk 0:17:54]}  Bxf5 {[%clk 0:12:18]} 45. exf5 {[%clk 0:18:19]}  h5 {[%clk 0:11:56]}
46. f6 {[%clk 0:12:07]}  Bxf6 {[%clk 0:07:39]} 47. Qf5 {[%clk 0:12:15]}  Bd4 {[%clk 0:03:49]} 48. Qxg5 {[%clk 0:10:35]}  Rf8 {[%clk 0:03:47]}
49. Qxh5+ {[%clk 0:09:41]}  Kg7 {[%clk 0:04:11]} 50. Qg5+ {[%clk 0:09:54]}  Kh8 {[%clk 0:03:10]} 51. Qh6+ {[%clk 0:08:57]}  Kg8 {[%clk 0:03:34]}
52. Bd5+ {[%clk 0:08:26]}  Rxd5 {[%clk 0:03:59]} 53. Qe6+ {[%clk 0:08:54]}  Kg7 {[%clk 0:04:22]} 54. Qxd5 {[%clk 0:09:20]}  Rxf2+ {[%clk 0:04:42]}
55. Kg3 {[%clk 0:09:39]}  Bb6 {[%clk 0:04:54]} 56. Qd7+ {[%clk 0:09:32]}  Rf7 {[%clk 0:03:18]} 57. Qxg4+ {[%clk 0:09:56]}  Kh8 {[%clk 0:03:40]}
58. Qxb4 {[%clk 0:09:46]}  Bc7+ {[%clk 0:04:04]} 59. Kg2 {[%clk 0:09:51]}  Rg7+ {[%clk 0:04:26]} 60. Kh1 {[%clk 0:07:28]}  Rh7 {[%clk 0:04:32]}
61. Qf8# {[%clk 0:06:20]} 1-0

[Event "2026 European Womens Championship"]
[Site "Batumi, GE"]
[Date "2026.06.01"]
[Round "7"]
[White "Avramidou, Anastasia"]
[Black "Abdinova, Narmin"]
[Result "1-0"]
[Board "79"]
[TimeControl "5400+30"]
[WhiteFideId "4239873"]
[BlackFideId "13425340"]
[WhiteElo "2320"]
[BlackElo "2165"]
[WhiteTitle "FM"]
[BlackTitle "WIM"]
[WhiteClock "0:13:37"]
[BlackClock "0:06:45"]
[Variant "Standard"]

1. Nf3 {[%clk 1:30:56]}  Nf6 {[%clk 1:27:12]} 2. g3 {[%clk 1:31:13]}  d5 {[%clk 1:21:22]} 3. Bg2 {[%clk 1:31:26]}  g6 {[%clk 1:07:27]}
4. O-O {[%clk 1:31:41]}  Bg7 {[%clk 1:07:45]} 5. c4 {[%clk 1:31:58]}  c6 {[%clk 1:06:02]} 6. Qc2 {[%clk 1:23:52]}  O-O {[%clk 0:51:29]}
7. d4 {[%clk 1:11:29]}  Ne4 {[%clk 0:45:11]} 8. Nc3 {[%clk 1:06:54]}  f5 {[%clk 0:36:10]} 9. Bf4 {[%clk 0:58:54]}  e6 {[%clk 0:35:10]}
10. Be5 {[%clk 0:45:56]}  Bh6 {[%clk 0:28:09]} 11. b4 {[%clk 0:45:01]}  Nd7 {[%clk 0:27:34]} 12. a4 {[%clk 0:40:00]}  Nb6 {[%clk 0:24:37]}
13. c5 {[%clk 0:36:19]}  Nc4 {[%clk 0:25:04]} 14. Bf4 {[%clk 0:34:09]}  g5 {[%clk 0:13:48]} 15. Bc1 {[%clk 0:34:32]}  Qf6 {[%clk 0:14:16]}
16. e3 {[%clk 0:34:44]}  Bd7 {[%clk 0:11:44]} 17. Ne2 {[%clk 0:17:57]}  Be8 {[%clk 0:09:45]} 18. Ne1 {[%clk 0:18:21]}  Qe7 {[%clk 0:08:46]}
19. f3 {[%clk 0:09:43]}  Nf6 {[%clk 0:09:12]} 20. Nd3 {[%clk 0:10:09]}  e5 {[%clk 0:04:54]} 21. Nxe5 {[%clk 0:08:11]}  Nxe5 {[%clk 0:05:12]}
22. dxe5 {[%clk 0:08:36]}  Qxe5 {[%clk 0:05:39]} 23. Ra3 {[%clk 0:08:59]}  Bg6 {[%clk 0:01:03]} 24. Bb2 {[%clk 0:08:20]}  Qe7 {[%clk 0:01:02]}
25. Qd2 {[%clk 0:08:13]}  Rae8 {[%clk 0:01:14]} 26. Bd4 {[%clk 0:06:42]}  Nd7 {[%clk 0:00:37]} 27. f4 {[%clk 0:07:02]}  gxf4 {[%clk 0:00:36]}
28. Nxf4 {[%clk 0:06:06]}  Ne5 {[%clk 0:00:37]} 29. Qc3 {[%clk 0:05:17]}  Bg7 {[%clk 0:00:50]} 30. b5 {[%clk 0:04:51]}  Kh8 {[%clk 0:01:10]}
31. Rb3 {[%clk 0:03:34]}  Ng4 {[%clk 0:00:36]} 32. Rfb1 {[%clk 0:03:04]}  Bxd4 {[%clk 0:00:42]} 33. Qxd4+ {[%clk 0:03:02]}  Qe5 {[%clk 0:00:31]}
34. bxc6 {[%clk 0:02:01]}  bxc6 {[%clk 0:00:55]} 35. Rb7 {[%clk 0:01:33]}  Kg8 {[%clk 0:01:11]} 36. Rxa7 {[%clk 0:01:26]}  Rb8 {[%clk 0:00:38]}
37. Rb6 {[%clk 0:00:51]}  Qxe3+ {[%clk 0:00:33]} 38. Qxe3 {[%clk 0:01:16]}  Nxe3 {[%clk 0:01:00]} 39. a5 {[%clk 0:01:16]}  Nc4 {[%clk 0:00:33]}
40. Nxd5 {[%clk 0:00:36]}  Nxb6 {[%clk 0:00:35]} 41. Ne7+ {[%clk 0:01:00]}  Kh8 {[%clk 0:00:47]} 42. cxb6 {[%clk 0:29:57]}  f4 {[%clk 0:15:40]}
43. Nxg6+ {[%clk 0:20:17]}  hxg6 {[%clk 0:16:04]} 44. Bxc6 {[%clk 0:20:41]}  f3 {[%clk 0:06:45]} 45. Ra8 {[%clk 0:13:37]} 1-0

[Event "2026 European Womens Championship"]
[Site "Batumi, GE"]
[Date "2026.06.01"]
[Round "7"]
[White "Matnadze Bujiashvili, Ann"]
[Black "Olde, Margareth"]
[Result "1/2-1/2"]
[Board "80"]
[TimeControl "5400+30"]
[WhiteFideId "13601377"]
[BlackFideId "4503082"]
[WhiteElo "2310"]
[BlackElo "2194"]
[WhiteTitle "IM"]
[BlackTitle "WIM"]
[WhiteClock "0:01:14"]
[BlackClock "0:00:25"]
[Variant "Standard"]

1. d4 {[%clk 1:30:57]}  Nf6 {[%clk 1:30:51]} 2. c4 {[%clk 1:30:36]}  e6 {[%clk 1:31:14]} 3. Nf3 {[%clk 1:31:01]}  d5 {[%clk 1:31:32]}
4. Nc3 {[%clk 1:29:58]}  Be7 {[%clk 1:31:15]} 5. g3 {[%clk 1:29:23]}  dxc4 {[%clk 1:31:13]} 6. Bg2 {[%clk 1:29:42]}  Nbd7 {[%clk 1:30:49]}
7. a4 {[%clk 1:28:54]}  a5 {[%clk 1:23:39]} 8. e4 {[%clk 1:28:30]}  Bb4 {[%clk 1:15:22]} 9. Qe2 {[%clk 1:25:03]}  O-O {[%clk 1:11:34]}
10. O-O {[%clk 1:24:07]}  Nb6 {[%clk 1:06:08]} 11. Qc2 {[%clk 1:06:35]}  h6 {[%clk 1:01:59]} 12. Rd1 {[%clk 1:02:24]}  Bd7 {[%clk 1:01:12]}
13. Ne5 {[%clk 1:02:35]}  Be8 {[%clk 0:55:00]} 14. Be3 {[%clk 0:53:33]}  Nfd7 {[%clk 0:52:05]} 15. Nf3 {[%clk 0:43:52]}  Qe7 {[%clk 0:47:47]}
16. Bf1 {[%clk 0:35:25]}  Rd8 {[%clk 0:31:44]} 17. Nd2 {[%clk 0:32:18]}  c5 {[%clk 0:24:15]} 18. Nxc4 {[%clk 0:30:08]}  Nxc4 {[%clk 0:23:51]}
19. Bxc4 {[%clk 0:30:36]}  cxd4 {[%clk 0:23:18]} 20. Bxd4 {[%clk 0:30:52]}  Rc8 {[%clk 0:22:40]} 21. Qe2 {[%clk 0:21:03]}  Nc5 {[%clk 0:19:25]}
22. Rdc1 {[%clk 0:10:48]}  Bc6 {[%clk 0:17:20]} 23. f3 {[%clk 0:04:50]}  Rfd8 {[%clk 0:17:22]} 24. Be3 {[%clk 0:05:18]}  Bxc3 {[%clk 0:13:45]}
25. Rxc3 {[%clk 0:05:47]}  Nxa4 {[%clk 0:13:42]} 26. Rc2 {[%clk 0:04:44]}  Qb4 {[%clk 0:07:31]} 27. Bd2 {[%clk 0:04:41]}  Qd6 {[%clk 0:07:09]}
28. Bf4 {[%clk 0:03:22]}  Qd7 {[%clk 0:03:03]} 29. Be3 {[%clk 0:03:28]}  b5 {[%clk 0:02:09]} 30. Bb3 {[%clk 0:03:08]}  Qb7 {[%clk 0:00:36]}
31. Bxa4 {[%clk 0:01:40]}  bxa4 {[%clk 0:01:04]} 32. Rac1 {[%clk 0:00:55]}  Bd7 {[%clk 0:01:01]} 33. Qe1 {[%clk 0:01:04]}  Rxc2 {[%clk 0:00:43]}
34. Rxc2 {[%clk 0:01:33]}  Rc8 {[%clk 0:00:37]} 35. Rxc8+ {[%clk 0:01:43]}  Bxc8 {[%clk 0:00:38]} 36. Qxa5 {[%clk 0:01:20]}  Qd7 {[%clk 0:00:45]}
37. Qd2 {[%clk 0:01:14]}  Qxd2 {[%clk 0:00:25]} 1/2-1/2

[Event "2026 European Womens Championship"]
[Site "Batumi, GE"]
[Date "2026.06.01"]
[Round "7"]
[White "Zimina, Olga"]
[Black "Venskaya, Nika"]
[Result "1-0"]
[Board "81"]
[TimeControl "5400+30"]
[WhiteFideId "4132190"]
[BlackFideId "13523503"]
[WhiteElo "2290"]
[BlackElo "1937"]
[WhiteTitle "IM"]
[BlackTitle "WCM"]
[WhiteClock "0:08:18"]
[BlackClock "0:01:17"]
[Variant "Standard"]

1. d4 {[%clk 1:30:56]}  Nf6 {[%clk 1:30:56]} 2. Nf3 {[%clk 1:31:18]}  g6 {[%clk 1:31:21]} 3. Nbd2 {[%clk 1:31:40]}  c5 {[%clk 1:31:23]}
4. dxc5 {[%clk 1:31:23]}  Qa5 {[%clk 1:31:49]} 5. a3 {[%clk 1:31:46]}  Qxc5 {[%clk 1:32:15]} 6. b4 {[%clk 1:32:10]}  Qc7 {[%clk 1:32:22]}
7. Bb2 {[%clk 1:32:26]}  Bg7 {[%clk 1:32:47]} 8. e3 {[%clk 1:31:31]}  O-O {[%clk 1:31:39]} 9. Bd3 {[%clk 1:28:57]}  b6 {[%clk 1:31:07]}
10. O-O {[%clk 1:28:56]}  Bb7 {[%clk 1:31:33]} 11. c4 {[%clk 1:26:13]}  d6 {[%clk 1:31:59]} 12. Qb3 {[%clk 1:17:14]}  Nbd7 {[%clk 1:32:22]}
13. h3 {[%clk 1:17:38]}  Rac8 {[%clk 1:26:55]} 14. Rac1 {[%clk 1:16:01]}  Qb8 {[%clk 1:27:00]} 15. Rfd1 {[%clk 1:15:46]}  Qa8 {[%clk 1:23:50]}
16. Bf1 {[%clk 1:13:12]}  Rc7 {[%clk 1:19:43]} 17. Qa2 {[%clk 1:02:17]}  Rfc8 {[%clk 1:12:51]} 18. Qa1 {[%clk 1:00:39]}  Ne8 {[%clk 0:59:55]}
19. Nd4 {[%clk 0:42:00]}  a6 {[%clk 0:59:45]} 20. Ne2 {[%clk 0:41:50]}  Bxb2 {[%clk 0:47:53]} 21. Qxb2 {[%clk 0:42:11]}  Nef6 {[%clk 0:48:16]}
22. Nc3 {[%clk 0:33:14]}  d5 {[%clk 0:40:26]} 23. cxd5 {[%clk 0:31:25]}  Nxd5 {[%clk 0:40:14]} 24. Nxd5 {[%clk 0:28:06]}  Bxd5 {[%clk 0:40:01]}
25. Rxc7 {[%clk 0:26:06]}  Rxc7 {[%clk 0:40:10]} 26. Rc1 {[%clk 0:26:14]}  Rxc1 {[%clk 0:31:25]} 27. Qxc1 {[%clk 0:26:30]}  b5 {[%clk 0:31:34]}
28. Qc7 {[%clk 0:25:59]}  Qb7 {[%clk 0:31:46]} 29. Qxb7 {[%clk 0:18:02]}  Bxb7 {[%clk 0:32:11]} 30. f4 {[%clk 0:17:46]}  e5 {[%clk 0:29:31]}
31. Kf2 {[%clk 0:17:38]}  f6 {[%clk 0:27:37]} 32. g4 {[%clk 0:14:53]}  exf4 {[%clk 0:15:46]} 33. exf4 {[%clk 0:15:21]}  Kf7 {[%clk 0:16:07]}
34. Ke3 {[%clk 0:14:36]}  Ke6 {[%clk 0:16:02]} 35. Kd4 {[%clk 0:14:47]}  Kd6 {[%clk 0:15:52]} 36. Bd3 {[%clk 0:07:37]}  Nf8 {[%clk 0:11:08]}
37. Ne4+ {[%clk 0:05:27]}  Bxe4 {[%clk 0:09:48]} 38. Bxe4 {[%clk 0:05:41]}  Ne6+ {[%clk 0:10:07]} 39. Ke3 {[%clk 0:06:05]}  Nc7 {[%clk 0:06:34]}
40. f5 {[%clk 0:04:52]}  gxf5 {[%clk 0:02:30]} 41. Bxf5 {[%clk 0:05:06]}  Nd5+ {[%clk 0:28:21]} 42. Kd4 {[%clk 0:26:22]}  h6 {[%clk 0:26:08]}
43. Bc8 {[%clk 0:26:01]}  Ne7 {[%clk 0:24:34]} 44. Bb7 {[%clk 0:25:13]}  Kc7 {[%clk 0:20:01]} 45. Be4 {[%clk 0:23:05]}  Kd6 {[%clk 0:16:35]}
46. Ke3 {[%clk 0:17:49]}  Nc8 {[%clk 0:04:44]} 47. Bb7 {[%clk 0:16:04]}  Nb6 {[%clk 0:04:54]} 48. Kd4 {[%clk 0:15:55]}  Nc4 {[%clk 0:04:12]}
49. a4 {[%clk 0:15:56]}  Na3 {[%clk 0:00:43]} 50. a5 {[%clk 0:15:19]}  Nc2+ {[%clk 0:00:49]} 51. Kc3 {[%clk 0:15:44]}  Ne3 {[%clk 0:01:14]}
52. Bxa6 {[%clk 0:15:59]}  Kc6 {[%clk 0:01:09]} 53. Bc8 {[%clk 0:15:50]}  Nd5+ {[%clk 0:00:45]} 54. Kb3 {[%clk 0:16:11]}  Nf4 {[%clk 0:00:51]}
55. h4 {[%clk 0:16:20]}  Nd5 {[%clk 0:00:36]} 56. Bf5 {[%clk 0:15:10]}  Nc7 {[%clk 0:01:00]} 57. Be4+ {[%clk 0:09:00]}  Kd6 {[%clk 0:01:24]}
58. Bb7 {[%clk 0:09:19]}  Ne6 {[%clk 0:01:40]} 59. Kc3 {[%clk 0:09:25]}  Nf4 {[%clk 0:01:17]} 60. Bf3 {[%clk 0:08:18]}  Kc7 {[%clk 0:01:39]} 1-0

[Event "2026 European Womens Championship"]
[Site "Batumi, GE"]
[Date "2026.06.01"]
[Round "7"]
[White "Deak-Sala, Emilia"]
[Black "Velikic, Adela"]
[Result "1/2-1/2"]
[Board "82"]
[TimeControl "5400+30"]
[WhiteFideId "795615"]
[BlackFideId "913553"]
[WhiteElo "2086"]
[BlackElo "2277"]
[WhiteTitle "WFM"]
[BlackTitle "WIM"]
[WhiteClock "0:01:51"]
[BlackClock "0:01:03"]
[Variant "Standard"]

1. e4 {[%clk 1:28:12]}  c5 {[%clk 1:30:54]} 2. Nf3 {[%clk 1:28:37]}  e6 {[%clk 1:31:19]} 3. d4 {[%clk 1:29:04]}  cxd4 {[%clk 1:31:44]}
4. Qxd4 {[%clk 1:29:30]}  Nc6 {[%clk 1:29:48]} 5. Qe3 {[%clk 1:29:57]}  b6 {[%clk 1:25:00]} 6. Nc3 {[%clk 1:22:19]}  Bc5 {[%clk 1:20:41]}
7. Qe2 {[%clk 1:21:28]}  Bb7 {[%clk 0:56:37]} 8. Be3 {[%clk 1:16:28]}  Bb4 {[%clk 0:54:27]} 9. Bd2 {[%clk 1:14:52]}  Nf6 {[%clk 0:49:12]}
10. a3 {[%clk 1:03:01]}  Bc5 {[%clk 0:41:19]} 11. e5 {[%clk 0:59:31]}  Ng4 {[%clk 0:34:15]} 12. Ne4 {[%clk 0:57:50]}  Be7 {[%clk 0:23:01]}
13. Nd6+ {[%clk 0:55:53]}  Bxd6 {[%clk 0:23:03]} 14. exd6 {[%clk 0:56:20]}  Qb8 {[%clk 0:15:23]} 15. O-O-O {[%clk 0:43:36]}  a5 {[%clk 0:10:54]}
16. h3 {[%clk 0:41:06]}  Ba6 {[%clk 0:09:22]} 17. Qe1 {[%clk 0:41:04]}  Nf6 {[%clk 0:08:51]} 18. Bg5 {[%clk 0:41:00]}  Bxf1 {[%clk 0:05:19]}
19. Rxf1 {[%clk 0:41:22]}  O-O {[%clk 0:03:49]} 20. Bxf6 {[%clk 0:38:12]}  gxf6 {[%clk 0:04:17]} 21. Nh2 {[%clk 0:38:25]}  Qd8 {[%clk 0:02:43]}
22. f4 {[%clk 0:37:52]}  f5 {[%clk 0:02:21]} 23. g4 {[%clk 0:37:24]}  fxg4 {[%clk 0:02:25]} 24. f5 {[%clk 0:34:10]}  Qg5+ {[%clk 0:02:23]}
25. Kb1 {[%clk 0:34:31]}  exf5 {[%clk 0:02:00]} 26. Rd5 {[%clk 0:34:29]}  Rae8 {[%clk 0:02:04]} 27. Qc3 {[%clk 0:32:27]}  Qg7 {[%clk 0:02:21]}
28. Qd2 {[%clk 0:30:25]}  Re5 {[%clk 0:00:38]} 29. Rxf5 {[%clk 0:30:32]}  Rxd5 {[%clk 0:00:34]} 30. Rxd5 {[%clk 0:30:17]}  f5 {[%clk 0:00:34]}
31. hxg4 {[%clk 0:28:43]}  Ne5 {[%clk 0:00:54]} 32. g5 {[%clk 0:23:18]}  f4 {[%clk 0:00:36]} 33. Qe2 {[%clk 0:22:59]}  Ng6 {[%clk 0:00:35]}
34. Nf3 {[%clk 0:23:25]}  Qf7 {[%clk 0:00:45]} 35. Rd1 {[%clk 0:21:30]}  Re8 {[%clk 0:01:00]} 36. Qf2 {[%clk 0:21:53]}  Re3 {[%clk 0:01:12]}
37. Nh2 {[%clk 0:20:41]}  Qe6 {[%clk 0:00:46]} 38. Qg1 {[%clk 0:07:56]}  Ne5 {[%clk 0:00:59]} 39. Nf1 {[%clk 0:07:57]}  Re2 {[%clk 0:00:33]}
40. Qxb6 {[%clk 0:01:40]}  Nc4 {[%clk 0:00:54]} 41. Qd4 {[%clk 0:00:53]}  Re4 {[%clk 0:20:15]} 42. Qc3 {[%clk 0:26:40]}  a4 {[%clk 0:04:58]}
43. Kc1 {[%clk 0:15:35]}  Ne3 {[%clk 0:01:48]} 44. Nxe3 {[%clk 0:14:25]}  fxe3 {[%clk 0:02:13]} 45. b3 {[%clk 0:10:30]}  e2 {[%clk 0:02:03]}
46. Re1 {[%clk 0:10:46]}  Qxd6 {[%clk 0:01:35]} 47. bxa4 {[%clk 0:09:22]}  Re6 {[%clk 0:00:53]} 48. a5 {[%clk 0:07:04]}  Qf4+ {[%clk 0:00:34]}
49. Qd2 {[%clk 0:06:56]}  Qf3 {[%clk 0:00:40]} 50. Qd3 {[%clk 0:06:05]}  Qf2 {[%clk 0:00:44]} 51. Qc3 {[%clk 0:06:17]}  Qf4+ {[%clk 0:01:00]}
52. Qd2 {[%clk 0:05:48]}  Qe5 {[%clk 0:00:40]} 53. c3 {[%clk 0:04:40]}  Qxa5 {[%clk 0:00:46]} 54. Rxe2 {[%clk 0:01:47]}  Rxe2 {[%clk 0:00:38]}
55. Qxe2 {[%clk 0:02:13]}  Qxc3+ {[%clk 0:00:37]} 56. Kb1 {[%clk 0:01:43]}  Qxa3 {[%clk 0:00:49]} 57. Qe8+ {[%clk 0:01:32]}  Qf8 {[%clk 0:01:08]}
58. Qxd7 {[%clk 0:01:57]}  Qf1+ {[%clk 0:01:07]} 59. Kc2 {[%clk 0:01:56]}  Qc4+ {[%clk 0:01:08]} 60. Kd1 {[%clk 0:01:41]}  Qb3+ {[%clk 0:00:49]}
61. Ke2 {[%clk 0:01:38]}  Qc4+ {[%clk 0:01:11]} 62. Kf3 {[%clk 0:01:06]}  Qf1+ {[%clk 0:01:16]} 63. Kg4 {[%clk 0:01:19]}  Qe2+ {[%clk 0:01:19]}
64. Kf4 {[%clk 0:01:27]}  Qh2+ {[%clk 0:01:04]} 65. Kg4 {[%clk 0:01:51]}  Qg2+ {[%clk 0:01:03]} 1/2-1/2